bitfinex/quotes_SOLUSD_20251124
["timestamp","ask_amount","ask_price","bid_price","bid_amount"]
[1763948045246,0.71,130.9,130.84,11.24281769]
[1763948046075,0.71,130.9,130.84,3.6]
[1763948047453,0.71,130.9,130.84,11.24272356]
[1763948049482,0.71,130.9,130.84,3.6]
[1763948049778,6.32458428,130.9,130.84,3.6]
[1763948049984,0.71,130.9,130.84,11.24287447]
[1763948050180,0.71,130.89,130.84,3.6]
[1763948051077,6.32458428,130.89,130.84,3.6]
[1763948051654,5.61458428,130.87,130.84,0.2]
[1763948051854,5.61458428,130.86,130.84,0.2]
[1763948052089,5.61458428,130.86,130.83,0.2]
[1763948052090,5.76672722,130.85,130.83,0.2]
[1763948052394,6.47672722,130.85,130.83,0.2]
[1763948052704,0.71,130.84,130.83,0.2]
[1763948053054,6.32458428,130.84,130.83,0.2]
[1763948053571,24.44554428,130.84,130.83,0.2]
[1763948054493,18.83096,130.84,130.83,0.2]
[1763948054695,5.76672722,130.85,130.83,0.2]
[1763948054696,0.15214294,130.85,130.83,0.2]
[1763948055798,0.15214294,130.85,130.83,8.1432257]
[1763948056903,0.15214294,130.85,130.84,0.3]
[1763948057108,0.15214294,130.85,130.84,1.06429226]
[1763948058201,0.15214294,130.85,130.84,26.82817491]
[1763948060607,0.15214294,130.85,130.84,30.24817491]
[1763948064215,0.15214294,130.85,130.84,29.18388265]
[1763948064420,0.15214294,130.85,130.84,21.54096]
[1763948065329,0.15214294,130.85,130.84,29.18388265]
[1763948065894,0.15214294,130.85,130.84,21.54096]
[1763948066712,0.15214294,130.85,130.84,29.48388265]
[1763948068496,0.15214294,130.85,130.84,29.18388265]
[1763948069292,0.15214294,130.85,130.84,29.48388265]
[1763948069615,0.14088377,130.87,130.84,31.48388264]
[1763948069794,0.15284102,130.88,130.85,3.06423384]
[1763948069994,0.15284102,130.88,130.86,7.64175454]
[1763948070206,0.15284102,130.88,130.87,4.16411706]
[1763948070404,0.15284102,130.88,130.87,6.32411705]
[1763948070405,0.00284102,130.88,130.87,6.32411705]
[1763948070604,0.00284102,130.88,130.87,4.32411706]
[1763948070813,0.00284102,130.88,130.87,6.32411705]
[1763948071226,0.68,130.95,130.87,6.32411705]
[1763948071227,0.2,130.99,130.9,18.12096]
[1763948071399,0.68,130.97,130.91,3.4]
[1763948072115,0.15247613,130.93,130.92,7.63825236]
[1763948073005,0.83247613,130.93,130.92,18.12096]
[1763948073319,0.83247613,130.93,130.92,3.4]
[1763948073716,0.15247613,130.93,130.92,3.4]
[1763948074716,0.15247613,130.93,130.92,29.15921236]
[1763948074922,0.16673741,130.94,130.92,31.15921235]
[1763948075105,0.14955613,130.95,130.92,31.15921235]
[1763948075306,0.14955613,130.95,130.94,18.12096]
[1763948075697,0.1391639,130.96,130.95,18.12096]
[1763948075918,0.1391639,130.96,130.95,21.52096]
[1763948076103,0.16267869,130.97,130.96,18.12096]
[1763948076299,0.16267869,130.97,130.96,25.75687936]
[1763948077003,0.16267869,130.97,130.95,11.03634427]
[1763948077395,0.15314076,131.0,130.96,18.12096]
[1763948077605,0.1470346,131.01,130.98,18.12096]
[1763948077812,0.1470346,131.01,130.99,21.52096]
[1763948078323,0.1470346,131.01,131.0,7.63358778]
[1763948078700,0.1470346,131.01,131.0,25.75454778]
[1763948079724,0.1470346,131.01,131.0,21.52096]
[1763948079725,0.8270346,131.01,131.0,21.52096]
[1763948080017,0.8270346,131.01,130.97,7.63525782]
[1763948080221,0.8270346,131.01,130.98,3.4]
[1763948082419,0.8270346,131.01,130.97,25.75618702]
[1763948082420,0.8270346,131.01,130.99,3.4]
[1763948084814,0.8270346,131.01,131.0,3.4]
[1763948085113,0.8270346,131.01,130.98,3.4]
[1763948088308,24.56257888,131.01,130.93,7.63752177]
[1763948088517,0.66,131.0,130.95,3.4]
[1763948090120,0.66,131.0,130.95,11.03648384]
[1763948090719,0.66,131.0,130.96,18.12096]
[1763948091714,0.66,131.0,130.97,7.63533633]
[1763948092032,0.66,131.0,130.98,3.4]
[1763948092209,0.16597764,130.99,130.98,3.4]
[1763948092626,0.82597764,130.99,130.98,3.4]
[1763948093135,0.82597764,130.99,130.94,7.63708568]
[1763948093341,0.82597764,130.99,130.95,3.4]
[1763948094954,5.61458428,130.98,130.91,7.63876549]
[1763948095244,5.61458428,130.98,130.93,3.4]
[1763948095414,0.66,130.97,130.93,3.4]
[1763948095616,6.27458428,130.97,130.93,3.4]
[1763948096018,0.66,130.96,130.93,3.4]
[1763948100650,0.66,130.96,130.92,3.4]
[1763948101346,0.66,130.98,130.92,21.52096]
[1763948101825,0.66,130.97,130.93,18.12096]
[1763948102027,0.66,130.97,130.92,3.4]
[1763948103219,0.66,130.97,130.92,11.03802512]
[1763948103828,0.66,130.97,130.93,3.4]
[1763948104238,0.66,130.97,130.86,0.76417545]
[1763948104239,5.61458428,130.96,130.86,19.10410733]
[1763948104440,5.61458428,130.95,130.87,7.64117062]
[1763948104651,9.55699492,130.94,130.88,3.4]
[1763948104822,0.66,130.96,130.88,3.4]
[1763948104823,9.55699492,130.93,130.88,3.4]
[1763948105018,18.12096,130.94,130.88,3.4]
[1763948105252,27.67795492,130.94,130.88,3.4]
[1763948105446,0.66,130.93,130.88,3.4]
[1763948106427,0.66,130.95,130.89,7.64000305]
[1763948106832,18.12096,130.97,130.89,7.64000305]
[1763948106833,0.16597764,130.99,130.9,18.12096]
[1763948107129,0.66,130.97,130.9,18.12096]
[1763948108457,0.66,130.97,130.91,44.85688544]
[1763948108629,0.82597764,130.99,130.92,4.16382523]
[1763948109250,0.16597764,130.99,130.92,4.16382523]
[1763948109753,0.16597764,130.99,130.95,18.12096]
[1763948110052,0.16597764,130.99,130.96,3.4]
[1763948110856,0.16597764,130.99,130.96,11.03579048]
[1763948111249,0.66,131.0,130.96,3.4]
[1763948111440,0.66,131.0,130.96,11.03581038]
[1763948112261,0.14963708,130.97,130.96,11.03581038]
[1763948112429,0.14963708,130.97,130.96,11.79940231]
[1763948113137,0.14963708,130.97,130.96,21.52096]
[1763948113950,0.14963708,130.97,130.96,18.12096]
[1763948114162,0.14963708,130.97,130.96,29.15687936]
[1763948114644,0.14963708,130.97,130.96,29.92047129]
[1763948114839,0.16177082,130.98,130.96,29.92047129]
[1763948115356,0.15614577,130.99,130.96,51.01026969]
[1763948115569,0.14844005,131.0,130.99,18.12096]
[1763948115734,0.14844005,131.0,130.99,21.52096]
[1763948115936,0.14843175,131.03,131.01,18.12096]
[1763948116154,0.14843175,131.03,131.01,25.75396511]
[1763948116859,0.83372673,131.02,131.0,21.52096]
[1763948117049,0.83372673,131.02,130.98,7.63469845]
[1763948117240,0.83372673,131.02,130.99,3.4]
[1763948118664,0.83372673,131.02,130.99,21.52096]
[1763948119858,0.83372673,131.02,130.99,29.15495059]
[1763948120059,0.83372673,131.02,131.01,18.12096]
[1763948120368,0.83372673,131.02,131.0,18.12096]
[1763948120577,0.83372673,131.02,130.99,29.15487527]
[1763948121169,0.83372673,131.02,131.01,18.12096]
[1763948122481,0.83372673,131.02,131.0,18.12096]
[1763948123176,0.83372673,131.02,130.99,29.15510508]
[1763948123868,0.15372673,131.02,131.01,18.12096]
[1763948124660,0.15372673,131.02,131.0,18.12096]
[1763948124869,0.15372673,131.02,130.99,11.03414508]
[1763948125568,0.15372673,131.02,131.01,18.12096]
[1763948126664,0.15372673,131.02,131.01,29.15396511]
[1763948128179,0.83372673,131.02,131.01,3.4]
[1763948129159,0.83372673,131.02,130.93,26.73133605]
[1763948129359,0.83372673,131.02,130.94,3.4]
[1763948129550,0.83372673,131.02,130.96,18.12096]
[1763948129750,0.83372673,131.02,130.97,3.4]
[1763948131271,0.68,131.02,130.97,3.4]
[1763948132277,0.16246432,130.98,130.97,3.4]
[1763948132767,0.84246432,130.98,130.97,3.4]
[1763948136777,0.16246432,130.98,130.97,3.4]
[1763948136956,0.84246432,130.98,130.97,3.4]
[1763948138168,0.84246432,130.98,130.95,18.12096]
[1763948138369,0.84246432,130.98,130.9,7.63924614]
[1763948138681,0.84246432,130.98,130.93,18.12096]
[1763948138874,0.84246432,130.98,130.92,7.63818506]
[1763948139088,0.84246432,130.98,130.92,25.75914506]
[1763948139986,10.39945924,130.98,130.91,3.4]
[1763948140155,10.39945924,130.98,130.91,21.52096]
[1763948140361,0.68,130.97,130.91,29.15964083]
[1763948141282,0.68,130.97,130.91,3.4]
[1763948141482,0.68,130.97,130.92,18.12096]
[1763948142982,0.68,130.97,130.91,3.4]
[1763948144584,0.16246432,130.98,130.91,11.03872094]
[1763948144779,0.16246432,130.98,130.93,18.12096]
[1763948144975,0.16246432,130.98,130.94,21.52096]
[1763948144976,0.83246432,130.98,130.94,21.52096]
[1763948146382,0.83246432,130.98,130.94,18.12096]
[1763948146686,0.83246432,130.98,130.95,3.4]
[1763948147585,0.16246432,130.98,130.95,3.4]
[1763948147974,0.69,130.97,130.95,3.4]
[1763948148695,0.69,130.97,130.91,7.63864244]
[1763948148893,0.69,130.97,130.92,3.4]
[1763948149074,9.55699492,130.96,130.92,3.4]
[1763948149466,0.69,130.95,130.92,3.4]
[1763948150997,0.69,130.95,130.89,3.4]
[1763948151171,10.24699492,130.95,130.89,3.4]
[1763948151366,9.55699492,130.93,130.83,19.30839066]
[1763948151587,18.81096,130.95,130.84,11.04292265]
[1763948151588,9.55699492,130.92,130.84,11.04292265]
[1763948151797,9.55699492,130.91,130.84,3.4]
[1763948152002,7.63593579,130.96,130.84,3.4]
[1763948152003,9.55699492,130.9,130.84,3.4]
[1763948152310,0.16767448,130.85,130.84,3.4]
[1763948152772,0.16767448,130.85,130.83,0.2]
[1763948152773,0.85767448,130.85,130.83,0.2]
[1763948153977,0.16767448,130.85,130.83,0.2]
[1763948154172,0.85767448,130.85,130.83,0.2]
[1763948158276,0.16767448,130.85,130.83,7.84348588]
[1763948160196,0.16767448,130.85,130.83,0.2]
[1763948161291,0.85767448,130.85,130.83,0.2]
[1763948162109,0.16767448,130.85,130.83,0.2]
[1763948162403,0.85767448,130.85,130.83,0.2]
[1763948162575,0.85767448,130.85,130.83,7.84346546]
[1763948162781,0.16767448,130.85,130.83,7.84346546]
[1763948162976,0.85767448,130.85,130.83,0.2]
[1763948164005,0.85767448,130.85,130.8,0.1]
[1763948164006,9.55699492,130.84,130.8,0.1]
[1763948164184,9.55699492,130.82,130.8,0.1]
[1763948164381,0.85767448,130.85,130.78,0.1]
[1763948164382,9.55699492,130.81,130.78,0.1]
[1763948164577,9.55699492,130.79,130.76,3.5]
[1763948164790,9.55699492,130.79,130.76,0.1]
[1763948165105,0.69,130.78,130.76,0.1]
[1763948168404,6.31645853,130.78,130.76,0.1]
[1763948168586,0.69,130.78,130.76,0.1]
[1763948168787,0.69,130.77,130.76,0.1]
[1763948169917,0.69,130.79,130.76,0.1]
[1763948170499,0.69,130.81,130.76,0.1]
[1763948171041,0.16767448,130.85,130.77,0.41]
[1763948171337,0.69,130.87,130.78,20.8856029]
[1763948171633,0.69,130.91,130.82,18.12096]
[1763948171923,0.69,130.9,130.83,30.15227394]
[1763948172127,0.1629009,130.85,130.84,0.41]
[1763948173751,0.16743547,130.87,130.86,25.76271454]
[1763948173939,0.69,130.98,130.88,18.12096]
[1763948174129,0.69,130.98,130.89,21.93096]
[1763948174324,0.69,131.0,130.91,18.12096]
[1763948174752,6.31645853,131.0,130.92,3.4]
[1763948174956,0.69,130.99,130.9,18.53096]
[1763948175132,0.69,130.99,130.91,3.4]
[1763948175449,5.62645853,130.98,130.91,3.4]
[1763948175844,0.66,130.97,130.91,11.03875757]
[1763948176150,0.66,130.97,130.91,11.44875757]
[1763948176345,0.66,130.97,130.91,3.4]
[1763948176935,6.28645853,130.97,130.9,21.52096]
[1763948177133,5.62645853,130.96,130.9,18.12096]
[1763948177377,6.28645853,130.96,130.9,21.52096]
[1763948177677,0.66,130.95,130.9,21.52096]
[1763948178735,6.28645853,130.95,130.89,21.52096]
[1763948178940,6.28645853,130.95,130.89,3.4]
[1763948179135,0.66,130.96,130.89,21.93096]
[1763948179345,5.62645853,130.98,130.89,21.93096]
[1763948179532,0.66,130.97,130.89,21.52096]
[1763948180030,6.28645853,130.97,130.89,21.52096]
[1763948180226,6.28645853,130.96,130.89,21.52096]
[1763948180635,0.66,130.95,130.89,29.16082808]
[1763948181565,0.66,130.95,130.89,21.52096]
[1763948182162,5.62645853,130.94,130.88,3.4]
[1763948182345,0.66,130.95,130.88,21.52096]
[1763948182550,0.66,130.94,130.88,21.52096]
[1763948182938,0.66,130.97,130.89,0.41]
[1763948183146,0.66,131.0,130.91,18.12096]
[1763948183459,0.66,131.0,130.92,21.52096]
[1763948183845,0.66,131.0,130.93,18.53096]
[1763948184049,0.66,131.0,130.94,0.41]
[1763948184247,0.66,131.0,130.93,7.63708569]
[1763948184464,0.66,131.0,130.92,29.15899266]
[1763948185066,6.28645853,131.0,130.93,3.4]
[1763948185463,6.28645853,130.99,130.94,18.12096]
[1763948185763,0.66,130.99,130.94,18.12096]
[1763948185951,0.66,130.98,130.94,18.12096]
[1763948186267,0.66,130.98,130.94,3.4]
[1763948187160,0.66,130.98,130.92,18.12096]
[1763948187364,6.28645853,130.98,130.92,3.4]
[1763948187548,0.66,130.97,130.92,3.4]
[1763948189158,0.66,130.97,130.92,3.81]
[1763948189948,0.66,130.97,130.93,0.41]
[1763948190169,0.66,130.97,130.93,7.63766898]
[1763948190365,0.66,131.0,130.94,0.41]
[1763948190567,0.66,131.03,130.95,18.12096]
[1763948190769,0.66,131.06,130.96,21.93096]
[1763948190958,0.66,131.05,130.96,21.93096]
[1763948191158,0.66,131.05,130.97,0.41]
[1763948191547,5.62645853,131.04,130.96,18.12096]
[1763948191748,5.62645853,131.04,130.98,3.4]
[1763948191972,0.66,131.03,130.98,3.4]
[1763948192283,0.14530602,130.99,130.95,18.12096]
[1763948192470,0.14530602,130.99,130.94,3.4]
[1763948192783,0.66,130.98,130.94,3.4]
[1763948193080,0.14530602,130.99,130.96,18.12096]
[1763948194182,0.80530602,130.99,130.93,26.73177932]
[1763948194476,0.80530602,130.99,130.94,21.52096]
[1763948194866,0.14530602,130.99,130.94,21.52096]
[1763948195065,0.80530602,130.99,130.94,21.93096]
[1763948195574,0.80530602,130.99,130.94,18.12096]
[1763948195767,0.80530602,130.99,130.95,3.4]
[1763948196080,0.80530602,130.99,130.94,3.4]
[1763948197155,0.80530602,130.99,130.9,7.63897884]
[1763948197156,5.62645853,130.97,130.9,3.4]
[1763948197593,0.66,130.96,130.9,3.4]
[1763948198355,0.66,130.96,130.9,3.81]
[1763948198868,0.66,130.96,130.91,7.63883584]
[1763948199955,0.66,130.96,130.9,3.4]
[1763948200162,0.66,130.96,130.91,0.41]
[1763948200360,0.66,130.96,130.91,8.04853753]
[1763948203686,0.66,130.96,130.91,7.63853753]
[1763948204189,0.66,130.96,130.89,25.76040412]
[1763948204390,0.66,130.96,130.9,3.4]
[1763948204907,0.66,130.96,130.89,18.12096]
[1763948205067,5.62645853,130.94,130.85,7.64233855]
[1763948205268,5.62645853,130.94,130.88,18.12096]
[1763948205572,0.7,130.93,130.86,3.4]
[1763948205762,5.62645853,130.92,130.86,3.4]
[1763948205963,0.72,130.91,130.86,3.4]
[1763948206662,0.72,130.91,130.85,3.4]
[1763948207291,6.34645853,130.91,130.81,7.64427565]
[1763948207468,5.62645853,130.9,130.82,3.4]
[1763948207669,6.34645853,130.9,130.82,21.52096]
[1763948207879,5.62645853,130.88,130.8,7.64505194]
[1763948208090,5.62645853,130.87,130.81,3.4]
[1763948208387,6.34645853,130.88,130.81,3.4]
[1763948208695,0.72,130.86,130.81,3.4]
[1763948209585,0.72,130.86,130.8,3.4]
[1763948210087,0.72,130.86,130.78,26.17725331]
[1763948210306,0.72,130.86,130.8,3.4]
[1763948210481,0.72,130.86,130.78,26.17725331]
[1763948210482,5.62645853,130.85,130.78,18.12096]
[1763948210798,0.72,130.86,130.77,0.1]
[1763948210799,5.62645853,130.81,130.77,0.1]
[1763948211175,0.72,130.8,130.77,0.1]
[1763948211495,6.34645853,130.8,130.77,0.1]
[1763948212005,0.72,130.79,130.77,0.1]
[1763948212207,0.15166218,130.78,130.77,0.1]
[1763948212372,5.77812071,130.78,130.77,0.1]
[1763948212572,6.49812071,130.78,130.77,0.1]
[1763948212979,18.99262218,130.78,130.77,0.1]
[1763948213180,0.87166218,130.78,130.77,0.1]
[1763948214170,0.15166218,130.78,130.77,0.1]
[1763948216007,0.87166218,130.78,130.77,0.1]
[1763948216302,0.15166218,130.78,130.77,0.1]
[1763948218279,0.87166218,130.78,130.77,0.1]
[1763948219691,0.15166218,130.78,130.77,0.1]
[1763948221589,0.87166218,130.78,130.77,0.1]
[1763948224116,6.49812071,130.78,130.77,0.1]
[1763948225001,109.99812071,130.78,130.77,0.1]
[1763948225213,113.39812071,130.78,130.77,0.1]
[1763948226696,117.35728044,130.78,130.77,0.1]
[1763948226890,13.85728044,130.78,130.76,0.1]
[1763948227210,28.42657826,130.77,130.76,0.1]
[1763948229210,131.92657826,130.77,130.76,0.1]
[1763948232323,132.06892753,130.77,130.76,0.1]
[1763948233026,122.48330927,130.77,130.76,0.1]
[1763948233210,132.06892753,130.77,130.76,0.1]
[1763948233731,107.76234927,130.77,130.76,0.1]
[1763948234096,117.34796753,130.77,130.76,0.1]
[1763948234429,117.34796753,130.77,130.75,0.1]
[1763948234592,10.30561826,130.76,130.75,0.1]
[1763948235494,28.42657826,130.76,130.75,0.1]
[1763948236612,31.84657826,130.76,130.75,0.1]
[1763948239297,13.72561826,130.76,130.75,0.1]
[1763948239494,22.26096,130.76,130.75,0.1]
[1763948239924,31.84657826,130.76,130.75,0.1]
[1763948244226,3.42,130.76,130.75,0.1]
[1763948244851,18.84096,130.75,130.7,0.1]
[1763948245135,27.70657826,130.71,130.7,0.1]
[1763948245310,31.12657826,130.71,130.7,0.1]
[1763948245515,31.84657826,130.71,130.7,0.1]
[1763948247247,13.72561826,130.71,130.7,0.1]
[1763948250016,31.84657826,130.71,130.7,0.1]
[1763948251720,13.72561826,130.71,130.7,0.1]
[1763948252113,31.99110599,130.71,130.7,0.1]
[1763948252318,13.87014599,130.71,130.7,0.1]
[1763948253433,31.27110599,130.71,130.7,0.1]
[1763948254036,21.68548773,130.71,130.7,0.1]
[1763948254944,31.27110599,130.71,130.7,0.1]
[1763948255525,31.99110599,130.71,130.7,0.1]
[1763948256240,13.87014599,130.71,130.7,0.1]
[1763948256615,18.12096,130.68,130.63,0.1]
[1763948256819,9.58561826,130.65,130.63,0.1]
[1763948257115,9.58561826,130.64,130.63,0.1]
[1763948258414,9.58561826,130.65,130.63,0.1]
[1763948259232,9.58561826,130.65,130.64,0.67]
[1763948259233,18.12096,130.65,130.64,0.67]
[1763948259644,31.12657826,130.67,130.64,0.67]
[1763948262024,31.12657826,130.67,130.63,0.1]
[1763948262347,31.12657826,130.67,130.64,0.67]
[1763948262842,9.58561826,130.66,130.63,0.77]
[1763948263046,21.54096,130.67,130.63,0.77]
[1763948263232,31.12657826,130.67,130.63,0.77]
[1763948263431,9.58561826,130.69,130.63,0.77]
[1763948263636,21.54096,130.69,130.63,0.77]
[1763948263841,31.12657826,130.69,130.63,0.77]
[1763948264021,9.58561826,130.66,130.63,0.77]
[1763948264421,9.58561826,130.67,130.63,0.77]
[1763948264645,0.72,130.68,130.63,0.1]
[1763948264646,9.58561826,130.65,130.63,0.1]
[1763948265228,9.58561826,130.64,130.63,0.1]
[1763948266664,3.42,130.66,130.63,0.1]
[1763948266952,18.12096,130.67,130.63,0.1]
[1763948266953,27.70657826,130.67,130.63,0.8]
[1763948267542,9.58561826,130.66,130.63,0.8]
[1763948268152,28.37657826,130.67,130.63,0.8]
[1763948268750,3.42,130.68,130.63,0.8]
[1763948269046,9.58561826,130.65,130.63,0.1]
[1763948269223,9.58561826,130.66,130.63,0.1]
[1763948269428,9.58561826,130.67,130.63,0.8]
[1763948270451,10.25561826,130.67,130.63,0.8]
[1763948270661,9.58561826,130.66,130.63,0.1]
[1763948271538,9.58561826,130.66,130.63,0.8]
[1763948272048,9.58561826,130.64,130.63,0.1]
[1763948272224,9.74947811,130.64,130.63,0.1]
[1763948272839,0.16385985,130.64,130.63,0.1]
[1763948275653,9.74947811,130.64,130.63,0.1]
[1763948275855,0.16385985,130.64,130.63,0.1]
[1763948276238,0.16385985,130.64,130.63,0.8]
[1763948276445,0.16385985,130.64,130.63,18.92096]
[1763948279356,0.16385985,130.64,130.63,0.8]
[1763948279563,0.16385985,130.64,130.63,8.45520936]
[1763948279959,0.16385985,130.64,130.63,0.8]
[1763948280266,0.16385985,130.64,130.63,8.45520936]
[1763948280773,0.16385985,130.64,130.63,0.8]
[1763948282461,0.16385985,130.64,130.63,0.1]
[1763948282963,0.16385985,130.64,130.63,0.8]
[1763948283364,0.16385985,130.64,130.63,0.1]
[1763948283662,0.83385985,130.64,130.63,0.1]
[1763948285458,0.16385985,130.64,130.63,0.8]
[1763948286353,0.14010857,130.65,130.63,8.45513766]
[1763948286855,0.14010857,130.65,130.64,0.7]
[1763948291153,0.67,130.7,130.64,0.7]
[1763948291359,103.5,130.69,130.64,0.7]
[1763948291753,104.17,130.69,130.64,0.7]
[1763948292142,0.1485958,130.65,130.64,8.35456087]
[1763948292557,0.16432212,130.66,130.64,8.35456087]
[1763948292756,0.16432212,130.66,130.65,0.7]
[1763948294052,0.16432212,130.66,130.65,4.12]
[1763948294251,0.16432212,130.66,130.65,11.7740375]
[1763948295158,0.16432212,130.66,130.65,12.53944125]
[1763948295358,0.16432212,130.66,130.65,0.7]
[1763948296655,0.16432212,130.66,130.64,3.42]
[1763948296861,0.16432212,130.66,130.64,4.08]
[1763948297158,0.16432212,130.66,130.65,0.66]
[1763948297353,0.16432212,130.66,130.65,18.78096]
[1763948298975,0.16432212,130.66,130.65,18.12096]
[1763948299155,0.16432212,130.66,130.65,22.20096]
[1763948299974,0.16432212,130.66,130.65,4.08]
[1763948300154,0.16432212,130.66,130.65,22.20096]
[1763948300556,0.16432212,130.66,130.65,4.08]
[1763948301582,0.16432212,130.66,130.65,11.7340375]
[1763948303984,0.06142788,130.7,130.65,68.47931878]
[1763948304285,0.15203635,130.73,130.72,18.12096]
[1763948304458,0.7,130.82,130.72,3.42]
[1763948304655,0.7,130.88,130.77,1.99999999]
[1763948304984,0.7,130.88,130.8,18.12096]
[1763948305185,0.7,130.88,130.81,3.42]
[1763948305500,0.7,130.88,130.82,7.64409111]
[1763948306656,0.9,130.83,130.81,18.12096]
[1763948306877,0.9,130.83,130.82,3.4]
[1763948307270,0.2,130.83,130.82,3.4]
[1763948308557,0.9,130.83,130.82,3.4]
[1763948309484,0.9,130.83,130.77,25.76791157]
[1763948309699,0.7,130.82,130.78,3.4]
[1763948309863,0.7,130.82,130.78,21.52096]
[1763948310497,0.2,130.83,130.78,21.52096]
[1763948310788,0.7,130.82,130.78,3.4]
[1763948311777,0.2,130.83,130.78,11.04637484]
[1763948312287,0.15985588,130.79,130.78,29.16733484]
[1763948313084,0.15985588,130.79,130.78,21.52096]
[1763948313285,0.15985588,130.79,130.76,7.64712147]
[1763948313459,0.15985588,130.79,130.78,3.4]
[1763948314278,0.15985588,130.79,130.76,18.12096]
[1763948314478,0.15985588,130.79,130.78,3.4]
[1763948315190,0.85985588,130.79,130.78,3.4]
[1763948315378,0.85985588,130.79,130.74,7.64827971]
[1763948315573,0.85985588,130.79,130.71,7.65001283]
[1763948315774,6.47642433,130.79,130.69,7.65169485]
[1763948315976,6.47642433,130.79,130.7,3.4]
[1763948316173,0.7,130.78,130.7,3.4]
[1763948316494,0.7,130.78,130.72,18.12096]
[1763948316672,0.7,130.78,130.73,3.4]
[1763948316880,0.7,130.78,130.69,7.65169485]
[1763948317070,0.7,130.78,130.72,18.12096]
[1763948317271,0.7,130.78,130.73,3.4]
[1763948318373,0.7,130.78,130.73,11.0493136]
[1763948318565,0.7,130.78,130.72,18.12096]
[1763948318767,6.31656845,130.78,130.73,3.4]
[1763948319209,0.7,130.77,130.73,3.4]
[1763948321790,0.7,130.77,130.72,3.4]
[1763948322094,6.31656845,130.77,130.72,3.4]
[1763948322474,0.7,130.76,130.72,3.4]
[1763948324992,103.5,130.77,130.72,3.4]
[1763948325182,0.71,130.76,130.72,3.4]
[1763948326493,103.5,130.77,130.72,11.04982261]
[1763948326709,104.19,130.77,130.72,11.04982261]
[1763948327201,0.69,130.76,130.72,3.4]
[1763948329994,103.5,130.77,130.72,11.04988247]
[1763948330301,104.19,130.77,130.72,11.04988247]
[1763948330475,0.69,130.76,130.69,7.6511444]
[1763948330679,0.69,130.76,130.7,3.4]
[1763948330895,0.69,130.76,130.7,21.52096]
[1763948331283,0.69,130.76,130.7,18.12096]
[1763948331603,0.69,130.76,130.71,3.4]
[1763948332399,0.15842716,130.72,130.71,3.4]
[1763948333392,0.15226904,130.74,130.73,25.77031362]
[1763948333575,0.15226904,130.74,130.73,26.53524898]
[1763948334874,0.14263126,130.75,130.73,26.53524898]
[1763948335082,0.16647202,130.76,130.73,26.53524898]
[1763948335083,0.16647202,130.76,130.73,45.65863305]
[1763948335280,0.16647202,130.76,130.74,3.4]
[1763948336501,0.16647202,130.76,130.75,0.76481835]
[1763948336902,0.15898122,130.78,130.75,0.76481835]
[1763948336903,0.15898122,130.78,130.75,8.4130019]
[1763948337106,0.14165098,130.79,130.78,18.12096]
[1763948337413,0.14165098,130.79,130.78,21.52096]
[1763948338688,0.14165098,130.79,130.78,29.16738911]
[1763948339912,0.14165098,130.79,130.78,18.12096]
[1763948340211,0.14165098,130.79,130.78,3.4]
[1763948340720,0.14165098,130.79,130.78,29.16738911]
[1763948340912,0.14165098,130.79,130.78,21.52096]
[1763948343003,0.83165098,130.79,130.76,18.12096]
[1763948343326,0.83165098,130.79,130.77,3.4]
[1763948343625,0.83165098,130.79,130.78,3.4]
[1763948344808,0.83165098,130.79,130.74,18.12096]
[1763948345113,0.83165098,130.79,130.75,3.4]